bitfinex/quotes_ETHUSD_20260107
["timestamp","ask_amount","ask_price","bid_price","bid_amount"]
[1767764653789,4.0713491,3253.1,3252.4,1.09589137]
[1767764655706,4.0713491,3253.1,3252.4,1.09389137]
[1767764656608,4.03305292,3253.0,3252.4,1.09389137]
[1767764656907,4.03305292,3253.0,3252.4,0.17289922]
[1767764657107,3.07412642,3253.0,3252.5,0.92299215]
[1767764657407,4.03305292,3253.0,3252.4,0.17289922]
[1767764659002,4.03305292,3253.0,3252.4,0.17489922]
[1767764659176,0.001,3252.8,3252.4,0.17489922]
[1767764661410,0.001,3252.8,3252.5,0.92299215]
[1767764664015,0.001,3252.8,3252.4,0.002]
[1767764664212,0.71566066,3252.8,3252.4,0.002]
[1767764665113,3.07436898,3252.7,3252.4,0.002]
[1767764665414,3.78996885,3252.8,3252.4,0.002]
[1767764665715,3.82839728,3252.8,3252.4,0.002]
[1767764666515,0.71566066,3252.8,3252.4,0.002]
[1767764666687,0.75408909,3252.8,3252.4,0.002]
[1767764667218,3.82839622,3252.8,3252.4,0.002]
[1767764667408,3.11373556,3252.8,3252.4,0.002]
[1767764668421,0.9589265,3252.7,3252.4,0.002]
[1767764670326,0.001,3252.8,3252.4,0.002]
[1767764671416,0.001,3252.5,3252.0,1e-08]
[1767764671711,0.001,3252.5,3251.8,0.806]
[1767764671712,0.9622714,3252.5,3251.8,0.806]
[1767764672116,0.9612714,3252.3,3251.8,0.806]
[1767764673294,1.67242905,3252.3,3251.8,0.806]
[1767764673495,0.9612714,3252.2,3251.8,0.806]
[1767764674003,0.9612714,3252.2,3251.5,0.97468533]
[1767764674198,3.07493619,3252.1,3251.5,0.97468533]
[1767764674514,4.03613646,3252.2,3251.5,0.97468533]
[1767764675294,3.07486506,3252.2,3251.5,0.97468533]
[1767764675499,3.07486506,3252.2,3251.5,1.46071367]
[1767764675700,3.07486506,3252.2,3251.6,0.97468533]
[1767764677322,4.0360185,3252.3,3251.6,0.97468533]
[1767764677722,4.07445283,3252.3,3251.6,0.97468533]
[1767764678104,0.9612714,3252.2,3251.5,0.48602834]
[1767764678301,0.9612714,3252.2,3251.4,0.002]
[1767764678996,0.9612714,3252.0,3251.4,0.002]
[1767764679308,6.15025062,3251.9,3251.4,0.002]
[1767764679511,0.9612714,3251.8,3251.4,0.002]
[1767764679721,0.9612714,3251.8,3251.3,0.002]
[1767764679925,0.9612714,3251.6,3251.3,0.002]
[1767764681342,3.78650652,3251.7,3251.3,0.002]
[1767764681636,0.9612714,3251.6,3251.3,0.002]
[1767764682829,3.78650652,3251.7,3251.3,0.002]
[1767764683232,3.78650652,3251.7,3251.3,0.97668533]
[1767764684025,3.78650652,3251.7,3251.4,0.002]
[1767764684232,0.68617677,3251.6,3251.3,0.97668533]
[1767764684813,3.07535432,3251.7,3251.3,0.97668533]
[1767764687533,0.03844261,3251.6,3251.3,0.97668533]
[1767764688106,3.0752513,3251.8,3251.3,0.97668533]
[1767764689015,6.15010296,3252.0,3251.3,0.97668533]
[1767764689711,3.07505148,3252.0,3251.3,0.97668533]
[1767764689910,3.07505148,3252.0,3251.4,0.99009264]
[1767764690109,3.07505148,3252.0,3251.4,0.97468533]
[1767764690314,3.07505148,3252.0,3251.4,0.99009169]
[1767764692633,3.0748597,3252.2,3251.4,0.99009169]
[1767764692931,3.0748597,3252.2,3251.4,0.97468533]
[1767764693135,3.7859567,3252.2,3251.4,0.97468533]
[1767764693318,3.0748597,3252.2,3251.4,0.97468533]
[1767764693529,0.0384367,3252.1,3251.4,0.97468533]
[1767764694243,3.0748597,3252.2,3251.4,0.97468533]
[1767764695747,0.001,3251.8,3251.4,0.97468533]
[1767764696148,0.001,3251.8,3251.5,0.99009311]
[1767764696443,0.001,3251.8,3251.7,0.97468533]
[1767764699151,0.001,3251.8,3251.5,0.01540494]
[1767764699350,0.001,3251.8,3251.6,0.9599242]
[1767764699547,3.07555803,3252.5,3251.8,0.9599242]
[1767764700150,0.001,3252.5,3251.8,0.9599242]
[1767764701752,0.93318857,3252.0,3251.3,0.002]
[1767764701951,0.97162645,3252.0,3251.3,0.002]
[1767764702446,0.97162645,3252.0,3251.3,0.9367301]
[1767764702652,4.04668971,3252.0,3251.3,0.9367301]
[1767764706756,7.12175297,3252.0,3251.3,0.9367301]
[1767764706924,0.93318857,3251.8,3251.3,0.002]
[1767764707129,0.93318857,3251.7,3250.9,0.002]
[1767764707450,0.93418857,3251.7,3250.9,0.002]
[1767764707652,0.93318857,3251.5,3250.9,0.002]
[1767764708536,4.00878677,3251.4,3250.9,0.002]
[1767764709456,7.08438497,3251.4,3250.9,0.002]
[1767764709861,0.93318857,3251.3,3250.5,0.002]
[1767764710729,0.93318857,3251.1,3250.5,0.002]
[1767764711056,0.93318857,3250.9,3250.5,0.002]
[1767764712930,0.93318857,3250.7,3250.0,0.00184178]
[1767764713160,0.93318857,3250.7,3249.9,0.806]
[1767764713970,0.93318857,3250.7,3249.9,1.7407301]
[1767764714687,0.93318857,3251.1,3250.0,0.9347301]
[1767764714830,0.93318857,3251.1,3250.2,0.9347301]
[1767764715155,3.07597662,3251.0,3250.2,0.9347301]
[1767764716580,4.00916519,3251.0,3250.2,0.9347301]
[1767764717490,4.04761489,3251.0,3250.2,0.9347301]
[1767764718088,0.97163591,3251.2,3250.4,0.9347301]
[1767764718448,3.075882,3251.1,3250.4,0.9347301]
[1767764718683,3.075882,3251.1,3250.4,1.33587316]
[1767764718884,0.0384497,3251.0,3250.4,1.33587316]
[1767764719392,3.075882,3251.1,3250.5,0.9347301]
[1767764719571,0.03844734,3251.2,3250.5,0.9347301]
[1767764719753,3.0757029,3251.3,3250.5,0.9347301]
[1767764719951,3.11414905,3251.3,3250.6,0.9347301]
[1767764720985,3.0757029,3251.3,3250.6,0.9347301]
[1767764722285,4.00889147,3251.3,3250.5,0.44324715]
[1767764722486,0.93318857,3250.4,3248.5,0.9347301]
[1767764722672,6.30363176,3250.5,3248.5,0.9347301]
[1767764722673,0.93318857,3250.0,3248.6,0.01546222]
[1767764722873,0.93318857,3249.6,3248.5,0.9347301]
[1767764723076,0.93318857,3249.5,3248.5,0.9347301]
[1767764723387,0.93318857,3249.3,3248.2,0.9347301]
[1767764724460,0.93318857,3249.3,3248.2,4.01335702]
[1767764724693,0.93318857,3249.3,3248.2,7.09198518]
[1767764725065,0.93318857,3249.3,3248.2,4.01335702]
[1767764725283,0.93318857,3249.3,3248.3,0.70920716]
[1767764725460,3.07758849,3249.3,3248.4,3.07843861]
[1767764725660,0.93318857,3249.2,3248.3,3.78772726]
[1767764727084,0.93318857,3249.2,3248.3,0.70920716]
[1767764727291,0.93318857,3249.2,3248.2,0.9347301]
[1767764727478,0.93318857,3249.0,3248.2,0.9347301]
[1767764727858,0.93318857,3249.0,3248.0,4.81952522]
[1767764728087,0.93318857,3249.0,3248.1,3.0787045]
[1767764728275,0.93318857,3248.9,3248.1,3.0787045]
[1767764728482,0.93318857,3248.9,3247.7,0.9347301]
[1767764728659,0.93318857,3248.6,3247.7,0.9347301]
[1767764728861,4.50110562,3248.7,3247.6,3.07918035]
[1767764728862,0.93318857,3248.4,3247.6,3.07918035]
[1767764729574,0.93318857,3248.4,3247.5,3.07929176]
[1767764729769,0.93318857,3248.4,3247.6,0.70603768]
[1767764730794,0.93318857,3248.4,3247.4,0.9347301]
[1767764730998,7.09008419,3248.4,3247.4,0.9347301]
[1767764731307,0.93318857,3248.3,3247.4,0.9347301]
[1767764731468,0.93318857,3248.2,3247.4,0.9347301]
[1767764731797,0.93318857,3248.2,3247.5,0.91173661]
[1767764732003,0.92279156,3248.5,3247.6,0.91173661]
[1767764732206,0.92279156,3248.5,3247.8,0.91173661]
[1767764732499,0.92674816,3248.7,3247.8,0.91173661]
[1767764732500,0.92674816,3248.6,3247.8,0.91173661]
[1767764733277,0.92674816,3248.3,3247.7,0.002]
[1767764734698,4.00528372,3248.3,3247.7,0.002]
[1767764735092,0.92674816,3248.3,3247.7,0.002]
[1767764735671,0.92674816,3248.6,3247.7,0.002]
[1767764735875,0.71565942,3248.5,3247.7,0.002]
[1767764736076,1.64240758,3248.5,3247.7,0.002]
[1767764736277,0.92674816,3248.3,3247.7,0.002]
[1767764736711,1.52265942,3248.5,3247.7,0.91373661]
[1767764737002,0.807,3248.5,3247.7,0.91373661]
[1767764737373,3.88534951,3248.5,3247.7,0.91373661]
[1767764737576,0.807,3248.5,3247.7,0.91373661]
[1767764738011,4.00503014,3248.6,3247.7,0.91373661]
[1767764738304,0.03847929,3248.5,3247.8,0.91173661]
[1767764738522,4.80790745,3248.7,3247.8,0.91173661]
[1767764738707,0.57346556,3248.6,3247.8,0.91173661]
[1767764739223,0.57346556,3248.6,3247.7,3.0810791]
[1767764739224,0.96522745,3248.5,3247.7,0.002]
[1767764739423,0.92674816,3248.4,3247.7,0.002]
[1767764739928,0.03848166,3248.3,3247.7,0.002]
[1767764740230,0.96522982,3248.3,3247.7,0.002]
[1767764740434,0.92674816,3248.1,3247.7,0.002]
[1767764741110,0.92674816,3247.9,3247.4,0.002]
[1767764741491,0.92674816,3247.8,3246.6,3.08011428]
[1767764741686,0.92674816,3247.8,3246.5,4.79890174]
[1767764741902,0.92674816,3247.7,3246.5,4.79890174]
[1767764742108,0.92674816,3247.6,3246.6,3.56001302]
[1767764742499,0.92674816,3247.5,3246.6,3.56001302]
[1767764743400,0.92674816,3247.5,3246.6,3.08012285]
[1767764744723,0.92674816,3247.5,3246.9,0.002]
[1767764745320,0.92674816,3247.4,3246.9,0.002]
[1767764749053,0.03848996,3247.6,3246.9,0.91373661]
[1767764749196,1.8497839,3247.8,3246.9,0.91373661]
[1767764749401,0.3080158,3247.7,3247.0,0.91173661]
[1767764749600,0.03848877,3247.7,3247.0,0.91173661]
[1767764750209,1.62280216,3247.7,3246.9,0.002]
[1767764750408,0.96523693,3247.7,3246.9,0.002]
[1767764750802,3.07919694,3247.6,3246.9,0.002]
[1767764751101,0.03849114,3247.5,3246.9,0.002]
[1767764751827,0.69683236,3247.6,3246.9,0.002]
[1767764752029,0.03848996,3247.6,3246.9,0.002]
[1767764752232,0.65834299,3247.5,3246.9,0.002]
[1767764752531,0.03849233,3247.4,3246.9,0.91373661]
[1767764752824,0.65834299,3247.4,3246.9,0.91373661]
[1767764753132,0.96523693,3247.7,3246.9,3.99358612]
[1767764753429,0.96523693,3247.7,3246.9,0.91373661]
[1767764753430,1.06399321,3247.6,3246.9,0.91373661]
[1767764753627,0.65956547,3247.5,3246.9,0.91373661]
[1767764753833,0.65956547,3247.4,3246.9,0.91373661]
[1767764754723,0.65956547,3247.4,3246.9,0.002]
[1767764755332,0.65956547,3247.3,3246.9,0.002]
[1767764755504,0.9652393,3247.5,3246.9,0.002]
[1767764755705,0.65983757,3247.4,3246.9,0.002]
[1767764755904,0.65983757,3247.3,3246.9,0.002]
[1767764756212,1.71804312,3247.5,3246.9,0.002]
[1767764756408,1.71804312,3247.5,3246.7,3.99178182]
[1767764756409,0.92674816,3247.3,3245.3,0.002]
[1767764756612,0.92674816,3247.3,3244.2,0.25519607]
[1767764756613,0.92674816,3245.8,3244.1,0.91173661]
[1767764756858,0.08203694,3246.9,3244.1,0.91173661]
[1767764756859,1.46706465,3245.7,3245.2,0.1606242]
[1767764757005,0.66006465,3245.6,3244.3,6.164658]
[1767764757210,0.66006465,3245.5,3244.4,0.08003694]
[1767764757426,0.66006465,3245.4,3244.4,0.08003694]
[1767764757609,6.16199894,3245.7,3244.3,3.082329]
[1767764757934,1.2750802,3245.6,3244.4,0.31623659]
[1767764758231,1.58562847,3245.5,3244.3,0.91173661]
[1767764758531,0.92674816,3245.3,3244.0,3.99610454]
[1767764758743,0.92674816,3245.1,3244.0,0.91349313]
[1767764758949,0.807,3245.3,3244.0,0.91349313]
[1767764758950,0.95113028,3244.9,3244.0,0.00175652]
[1767764759246,0.95113028,3244.6,3244.0,0.00175652]
[1767764760409,0.95113028,3244.6,3242.8,3.99147767]
[1767764760410,0.95113028,3244.6,3241.4,1.99194015]
[1767764760608,0.95113028,3244.4,3242.9,3.08361832]
[1767764760808,0.95113028,3244.2,3242.9,3.08359357]
[1767764761008,0.65702439,3244.3,3243.0,0.30835936]
[1767764761009,1.11194575,3244.1,3243.0,0.30835936]
[1767764761313,0.95113028,3244.0,3243.0,0.30835936]
[1767764761640,0.95113028,3244.0,3243.0,3.39191257]
[1767764761641,0.87365759,3244.0,3243.0,3.39191257]
[1767764761803,0.807,3244.6,3243.1,1.07671168]
[1767764762010,0.9575441,3244.5,3243.3,1.07671168]
[1767764762209,0.9575441,3244.5,3243.2,0.807]
[1767764762210,0.9575441,3244.5,3243.4,0.18837117]
[1767764762445,0.9575441,3244.5,3243.2,1.80367474]
[1767764763144,0.9575441,3244.5,3243.3,1.07671168]
[1767764763347,0.9575441,3244.5,3243.4,3.08318431]
[1767764763724,4.03968729,3244.5,3243.4,3.08318431]
[1767764763926,0.9575441,3244.5,3243.4,6.16636862]
[1767764764118,0.9575441,3244.4,3243.4,3.78052117]
[1767764764646,0.9575441,3244.4,3243.4,6.86370548]
[1767764766514,4.03951191,3244.7,3243.4,7.86038022]
[1767764766709,4.03951191,3244.7,3243.5,0.99667474]
[1767764766932,0.9575441,3245.0,3243.8,0.08003694]
[1767764767131,0.9575441,3245.0,3244.0,0.99667474]
[1767764767443,0.03851605,3245.4,3244.3,0.99667474]
[1767764767610,0.61619989,3245.6,3244.2,6.16484802]
[1767764767611,0.03851724,3245.3,3244.5,0.99667474]
[1767764767814,0.03851486,3245.5,3244.5,0.99667474]
[1767764768640,0.65471357,3245.6,3244.5,0.99667474]
[1767764768816,3.73580958,3245.6,3244.5,0.99667474]
[1767764769139,0.03851249,3245.7,3244.5,0.99667474]
[1767764769708,3.11960296,3245.7,3244.6,4.07871875]
[1767764770113,0.03851249,3245.7,3244.7,0.99667474]
[1767764770310,0.001,3245.2,3244.7,0.99667474]
[1767764770616,0.001,3245.2,3244.8,1.71275102]
[1767764771152,0.001,3245.2,3244.9,0.99667474]
[1767764771451,0.9575441,3245.9,3244.9,0.808]
[1767764771747,0.0385113,3245.8,3244.9,3.88968958]
[1767764771949,0.0385113,3245.8,3244.9,4.88636432]
[1767764772269,3.11928463,3246.0,3245.0,0.50268416]
[1767764772414,0.9575441,3245.9,3244.9,3.88968958]
[1767764773434,0.9575441,3245.9,3244.9,6.97144864]
[1767764773646,3.0807757,3246.0,3244.9,4.88636432]
[1767764773849,0.03850893,3246.0,3245.0,0.99667474]
[1767764774151,0.03850893,3246.0,3245.1,0.79681234]
[1767764774540,3.08024025,3246.5,3245.2,0.99667474]
[1767764774735,0.03850418,3246.4,3245.2,0.99667474]
[1767764774939,3.08024025,3246.5,3245.3,0.99667474]
[1767764775147,4.03769174,3246.6,3245.2,0.08003694]
[1767764775148,0.9575441,3246.6,3245.5,0.99667474]
[1767764775455,0.038503,3246.5,3245.7,0.99667474]
[1767764775753,0.03849944,3246.8,3245.7,0.99667474]
[1767764775951,0.03849944,3246.8,3245.8,3.08090455]
[1767764776124,3.11850858,3246.8,3245.8,3.08090455]
[1767764777056,4.07605268,3246.8,3245.8,3.08090455]
[1767764777224,0.71559361,3246.7,3245.8,3.08090455]
[1767764777424,0.03850181,3246.6,3245.8,3.08090455]
[1767764777624,0.03850181,3246.6,3245.7,4.0776605]
[1767764778023,3.11867149,3246.6,3245.7,4.0776605]
[1767764778351,0.03850181,3246.6,3245.7,4.0776605]
[1767764778548,0.03850181,3246.6,3245.7,4.48076918]
[1767764780253,0.9575441,3247.5,3246.1,0.99667474]
[1767764780450,0.9585441,3247.4,3246.3,0.99667474]
[1767764780634,4.07649421,3247.4,3246.3,0.99667474]
[1767764780830,0.99703643,3247.4,3246.3,0.99667474]
[1767764781030,1.48320675,3247.4,3246.3,1.25707915]
[1767764782759,1.48320675,3247.4,3246.4,6.16067028]
[1767764783253,0.9575441,3247.3,3246.3,3.2607743]
[1767764783554,3.60505296,3247.4,3246.3,6.16083685]
[1767764783555,0.9960388,3247.2,3246.3,6.16083685]
[1767764783757,0.03849351,3247.3,3246.3,7.15751159]
[1767764784129,3.566585,3247.4,3246.3,7.15751159]
[1767764784330,0.03849351,3247.3,3246.3,7.15751159]
[1767764784832,0.48717032,3247.4,3246.3,7.15751159]
[1767764785026,0.48717032,3247.4,3246.3,7.95396275]
[1767764786052,0.52566265,3247.4,3246.3,7.95396275]
[1767764786863,0.001,3247.4,3246.6,0.99667474]
[1767764787066,0.001,3247.4,3246.7,1.07671168]
[1767764787762,0.99603169,3247.8,3246.7,0.807]
[1767764787935,0.9575441,3247.7,3246.7,0.807]
[1767764788135,0.9575441,3247.5,3246.7,0.807]
[1767764788732,0.9575441,3247.5,3246.8,3.07995564]
[1767764788967,0.9575441,3247.5,3246.8,6.93665399]
[1767764789265,0.9575441,3247.5,3246.8,3.85669835]
[1767764789667,0.9575441,3247.5,3246.8,3.77666141]
[1767764790036,0.9575441,3247.5,3246.8,3.07995564]
[1767764791651,0.9575441,3247.5,3246.8,6.15991128]
[1767764791962,0.99362641,3247.8,3246.8,6.15991128]
[1767764792146,1.032114,3247.8,3246.8,6.15991128]
[1767764792346,4.11112216,3247.8,3246.8,3.07995564]
[1767764792547,4.91091751,3247.8,3246.8,3.07995564]
[1767764793465,1.83190935,3247.8,3246.8,3.07995564]
[1767764793663,1.83190935,3247.8,3246.8,6.15991128]
[1767764793861,1.032114,3247.8,3246.8,7.20398032]
[1767764794066,0.001,3248.0,3246.9,0.9640321]
[1767764794364,0.001,3248.0,3247.1,0.9640321]
[1767764794365,0.001,3247.2,3247.1,0.9640321]
[1767764794568,0.001,3248.0,3247.1,0.9640321]
[1767764794954,0.001,3248.0,3247.3,0.9640321]
[1767764795151,0.65746547,3248.6,3247.5,0.9640321]
[1767764795354,0.99362641,3248.5,3247.6,3.07919694]
[1767764795566,0.99362641,3248.4,3247.5,3.07925653]
[1767764795750,0.99362641,3248.2,3247.5,3.0792805]
[1767764795954,0.99362641,3248.2,3247.4,3.2644754]
[1767764796264,0.99362641,3248.2,3247.5,3.07928416]
[1767764797283,0.99362641,3248.2,3247.5,3.07922062]
[1767764798257,0.99362641,3248.2,3247.5,3.713592]
[1767764799354,0.03848048,3248.4,3247.5,4.6776241]
[1767764799686,0.03848048,3248.4,3247.6,0.9640321]
[1767764800696,4.76901487,3248.4,3247.5,3.713592]
[1767764800999,1.03210689,3248.4,3247.5,3.713592]
[1767764801359,4.11055767,3248.4,3247.5,3.713592]
[1767764801557,1.03210689,3248.4,3247.5,3.713592]
[1767764802987,0.99362641,3248.3,3247.5,3.713592]
[1767764803187,0.03848285,3248.2,3247.5,3.713592]
[1767764803498,1.03210926,3248.2,3247.2,0.807]
[1767764803656,0.99362641,3247.8,3246.8,6.15991128]
[1767764804003,0.99362641,3247.8,3246.8,7.12394338]
[1767764804162,0.65944215,3247.7,3246.8,7.12394338]
[1767764804361,0.65944215,3247.7,3246.8,7.91703772]
[1767764804904,0.99362641,3247.6,3246.8,3.07995564]
[1767764805805,0.99362641,3247.6,3246.8,6.15991128]
[1767764806088,0.03848522,3248.0,3246.9,0.9640321]
[1767764806595,0.99362641,3247.9,3247.4,0.002]
[1767764807262,1.6535853,3247.8,3247.4,0.002]
[1767764807459,0.99362641,3247.8,3247.4,0.002]
[1767764808594,0.66039793,3247.7,3247.4,0.002]
[1767764809279,0.99362641,3247.8,3247.4,0.002]
[1767764809597,0.66069436,3247.7,3247.4,0.002]
[1767764809823,0.99362641,3247.8,3247.4,0.002]
[1767764810101,0.66069444,3247.7,3247.4,0.002]
[1767764810280,0.66087095,3247.6,3247.4,0.002]
[1767764810472,0.99362641,3247.8,3247.4,0.002]
[1767764810799,0.66086978,3247.7,3247.4,0.002]
[1767764810995,0.99362641,3247.8,3247.4,0.002]
[1767764811202,0.66087324,3247.7,3247.4,0.002]
[1767764811497,0.66087324,3247.6,3247.4,0.002]
[1767764811671,0.99362641,3247.8,3247.4,0.002]
[1767764811996,0.66096164,3247.7,3247.4,0.002]
[1767764812303,0.66096303,3247.6,3247.4,0.002]
[1767764812500,0.99362641,3247.8,3247.4,0.002]
[1767764812674,0.66107541,3247.7,3247.4,0.002]
[1767764812873,0.66107541,3247.6,3247.4,0.002]
[1767764813092,0.03848522,3248.0,3247.4,0.002]
[1767764813289,0.66124428,3247.9,3247.4,0.002]
[1767764813493,0.66124428,3247.8,3247.4,0.002]
[1767764813691,0.66124428,3247.7,3247.4,0.002]
[1767764813897,0.03848522,3248.0,3247.4,0.002]
[1767764814101,0.66140098,3247.9,3247.4,0.002]
[1767764814291,0.66140098,3247.8,3247.4,0.002]
[1767764814491,0.66140098,3247.7,3247.4,0.002]
[1767764814682,0.03848522,3248.0,3247.4,0.002]
[1767764815078,0.99462641,3248.1,3247.4,0.002]
[1767764816892,0.03848522,3248.0,3247.4,0.002]
[1767764817207,0.99462641,3248.1,3247.4,0.002]
[1767764818202,0.03848522,3248.0,3247.4,0.002]
[1767764819605,0.99462641,3248.1,3247.5,1.35411717]
[1767764819606,0.001,3248.1,3247.5,1.35411717]
[1767764819818,0.001,3248.1,3247.7,0.002]
[1767764820202,0.001,3248.1,3247.7,1e-08]
[1767764821675,0.001,3248.1,3247.7,0.96671798]
[1767764822506,0.94165711,3248.7,3247.8,3.07900732]
[1767764822809,0.94165711,3248.7,3247.9,0.61580835]
[1767764823009,0.94165711,3248.7,3247.9,1.58252632]
[1767764824583,0.94165711,3248.7,3247.9,4.66137291]
[1767764824982,0.94165711,3248.7,3248.0,0.96671797]
[1767764826208,0.94165711,3248.7,3248.0,4.04549128]
[1767764827206,0.94165711,3248.7,3248.0,0.96671797]
[1767764827395,0.03847811,3248.6,3248.0,0.96671797]
[1767764827601,0.98013522,3248.6,3247.9,0.61580835]
[1767764828003,0.98013522,3248.6,3247.9,3.6947175]
[1767764829182,0.94165711,3248.6,3247.9,3.6947175]
[1767764829714,0.94165711,3248.6,3247.9,4.66143547]
[1767764830692,0.94165711,3248.6,3247.9,7.74034799]
[1767764830900,0.94165711,3248.6,3248.0,0.68420526]
[1767764831610,0.001,3248.4,3248.0,0.68420526]
[1767764832001,0.94265711,3248.4,3248.0,0.68420526]
[1767764832205,0.94265711,3248.4,3247.7,4.85279887]
[1767764832388,0.94265711,3248.4,3247.8,3.07899574]
[1767764833024,0.94265711,3248.4,3247.7,4.85280991]
[1767764833549,0.94265711,3248.4,3247.7,3.88609194]
[1767764833848,0.94265711,3248.4,3247.8,3.0789975]
[1767764834049,0.94265711,3248.4,3247.8,3.77551679]
[1767764836024,0.94265711,3248.4,3247.8,0.69651929]
[1767764836521,0.94265711,3248.4,3247.8,3.77550822]
[1767764839012,0.001,3248.4,3247.8,4.74222619]
[1767764839416,0.94265711,3248.4,3247.8,4.74222619]
[1767764839613,0.94265711,3248.4,3247.9,0.86283018]
[1767764840226,0.94265711,3248.4,3247.8,3.07898893]
[1767764840629,0.94265711,3248.4,3247.8,3.0789901]
[1767764840922,0.94265711,3248.4,3247.7,0.80700001]
[1767764841532,0.94165711,3248.1,3247.7,1e-08]
[1767764844518,0.94165711,3248.0,3247.7,1e-08]
[1767764844710,0.94165711,3247.8,3247.7,1e-08]
[1767764845207,0.70991502,3247.9,3247.7,1e-08]
[1767764846219,3.07891252,3247.9,3247.7,1e-08]
[1767764846513,4.02050592,3248.0,3247.7,1e-08]
[1767764850542,4.05899114,3248.0,3247.7,1e-08]
[1767764852044,4.02050592,3248.0,3247.7,1e-08]
[1767764853648,0.0384864,3247.9,3247.7,1e-08]
[1767764854229,0.9975689,3247.9,3247.7,1e-08]
[1767764855029,4.07649633,3247.9,3247.7,1e-08]
[1767764856156,4.07649633,3247.9,3247.6,0.002]
[1767764856157,0.9590825,3247.7,3247.6,0.002]
[1767764858855,4.03818463,3247.7,3247.6,0.002]
[1767764859351,0.9590825,3247.7,3247.6,0.002]
[1767764860047,4.03818463,3247.7,3247.6,0.002]
[1767764862959,0.9590825,3247.6,3247.4,0.002]
[1767764864165,1.36673213,3247.8,3247.4,0.002]
[1767764864461,3.07896439,3247.9,3247.4,0.002]
[1767764865267,0.9590825,3247.8,3247.4,0.002]
[1767764865566,0.9590825,3247.6,3247.4,0.002]
[1767764869060,0.99757246,3247.6,3247.4,0.002]
[1767764869875,0.9590825,3247.6,3247.4,0.002]
[1767764870873,0.99757009,3247.8,3247.4,0.002]
[1767764871067,0.9590825,3247.7,3247.4,0.002]
[1767764871383,4.03824106,3247.7,3247.4,0.002]
[1767764871582,0.99757246,3247.6,3247.0,0.99266341]
[1767764871783,0.99757246,3247.6,3247.0,0.002]
[1767764872483,0.9590825,3247.5,3247.0,0.002]
[1767764872984,3.07919721,3247.6,3247.0,0.002]
[1767764873880,0.9590825,3247.5,3247.0,0.002]
[1767764874900,3.11768717,3247.6,3247.0,0.99266341]
[1767764875065,3.07919721,3247.6,3247.0,0.99266341]
[1767764875887,0.9590825,3247.5,3247.0,0.002]
[1767764876957,4.03822214,3247.7,3247.0,0.99266341]
[1767764877486,4.82918946,3247.7,3247.0,0.99266341]
[1767764877790,0.9590825,3247.6,3247.0,0.002]
[1767764878086,0.9590825,3247.4,3247.0,0.002]
[1767764878983,0.9590825,3247.6,3247.0,0.002]
[1767764880285,0.99757364,3247.5,3247.0,0.002]
[1767764880597,1.48050078,3247.5,3247.3,0.002]
[1767764880797,1.48050078,3247.5,3246.4,3.08231032]
[1767764880798,0.9590825,3247.3,3246.4,0.002]
[1767764881092,0.9590825,3247.1,3245.8,0.99266341]
[1767764881302,0.9590825,3246.9,3245.8,0.99266341]
[1767764881508,0.9735307,3246.7,3245.8,0.002]
[1767764881801,0.9735307,3246.5,3245.7,0.002]
[1767764884375,0.9735307,3246.3,3245.7,0.002]
[1767764884603,1.6869508,3246.2,3245.7,0.002]
[1767764884806,0.9735307,3246.1,3245.7,0.002]
[1767764886406,0.7134201,3246.2,3245.7,0.002]
[1767764886617,0.97825564,3246.4,3245.7,0.002]
[1767764886618,3.08049904,3246.3,3245.7,0.002]
[1767764886915,4.05875468,3246.3,3245.7,0.002]
[1767764887210,0.97825564,3246.2,3245.7,0.002]
[1767764888209,3.08049904,3246.3,3245.7,0.002]
[1767764888390,3.48637451,3246.3,3245.7,0.002]
[1767764888586,0.40587547,3246.3,3245.7,0.90920658]
[1767764888802,3.08043153,3246.3,3245.7,0.90920658]
[1767764889001,4.05868717,3246.3,3245.7,0.90920658]
[1767764889202,4.05868717,3246.3,3245.7,0.002]
[1767764889693,0.97825564,3246.2,3245.7,0.002]
[1767764890711,0.97825564,3246.5,3245.7,0.90920658]
[1767764890910,3.15896258,3247.9,3245.7,0.90920658]
[1767764890911,3.07986079,3246.9,3245.8,0.90720658]
[1767764891092,0.03849944,3246.8,3245.9,0.90720658]
[1767764892202,1.01675508,3246.8,3245.8,0.807]
[1767764892514,1.01675508,3246.8,3245.7,0.002]
[1767764892716,0.97825564,3246.5,3245.7,0.002]
[1767764893011,0.97825564,3246.5,3245.7,0.90920658]
[1767764893214,0.001,3246.0,3245.7,0.90920658]
[1767764893409,0.97825564,3246.5,3245.7,0.90920658]
[1767764894811,0.97825564,3246.5,3245.7,3.99016804]
[1767764895084,0.97825564,3246.4,3245.8,0.3990168]
[1767764895286,0.97825564,3246.4,3245.7,0.002]
[1767764898134,1.01676101,3246.3,3245.7,0.002]
[1767764898995,4.05878056,3246.2,3245.7,0.002]
[1767764899198,4.09728712,3246.2,3245.7,0.002]
[1767764899501,0.97825564,3246.1,3245.7,0.002]
[1767764900322,0.97825564,3246.0,3245.7,0.002]
[1767764901023,3.11903148,3246.2,3245.7,0.002]
[1767764901024,0.03850656,3246.2,3245.7,0.002]
[1767764901227,1.78525564,3246.7,3245.7,0.90920658]
[1767764901519,0.03850181,3246.6,3245.7,0.90920658]
[1767764901746,5.67196985,3246.5,3244.6,3.80977]
[1767764901895,0.97825564,3246.0,3243.9,0.98068244]
[1767764902092,0.97825564,3245.6,3243.9,1.78768244]
[1767764902446,0.97825564,3245.4,3244.0,3.37349741]
[1767764902613,0.97825564,3245.4,3244.1,0.29089533]
[1767764902931,4.05963486,3245.3,3244.2,3.08239191]
[1767764903136,4.05963486,3245.3,3244.1,0.29089533]
[1767764903137,7.14101408,3245.3,3244.1,3.37339449]
[1767764903304,4.05963486,3245.3,3244.2,0.33733945]
[1767764903490,1.78525564,3245.6,3244.3,0.29089533]
[1767764903692,0.97825564,3245.5,3244.3,0.29089533]
[1767764904199,0.97825564,3245.5,3244.2,0.33733945]
[1767764904508,0.97825564,3245.5,3244.2,0.70503351]
[1767764904715,0.97825564,3245.5,3244.6,0.002]
[1767764905299,0.97825564,3245.3,3244.6,0.002]
[1767764906022,3.08120968,3245.5,3244.6,0.29289533]
[1767764906923,6.16241936,3245.5,3244.6,0.29289533]
[1767764907129,0.97825564,3245.5,3244.6,0.002]
[1767764907594,0.97825564,3245.4,3244.6,0.002]
[1767764908802,0.97825564,3245.4,3244.3,0.002]
[1767764908992,0.97825564,3245.2,3244.3,0.002]